fUSD/lending_fUSD_20250503
["ID","MTS","AMOUNT","RATE_DAILY","PERIOD"]
[359731721,1746285044037,-2072.0,0.00019877,2]
[359731722,1746285044047,-581.0,0.00019877,2]
[359731723,1746285044057,-1449.0,0.00019877,2]
[359731724,1746285044067,-550.0,0.00019877,2]
[359731725,1746285044077,-376.58923022,0.00019893,2]
[359731726,1746285044086,-450.0,0.00019893,2]
[359731727,1746285044097,-3749.26,0.00019893,2]
[359731728,1746285044106,-450.0,0.00019893,2]
[359731729,1746285044116,-625.42,0.00019893,2]
[359731730,1746285044125,-519.76,0.00019893,2]
[359731731,1746285044136,-450.0,0.00019893,2]
[359731732,1746285044146,-450.0,0.00019894,2]
[359731733,1746285044155,-471.56831048,0.00019894,2]
[359731734,1746285044164,-465.7,0.00019894,2]
[359731735,1746285044173,-450.0,0.00019894,2]
[359731736,1746285044182,-450.0,0.00019894,2]
[359731737,1746285044191,-450.0,0.00019894,2]
[359731738,1746285044200,-450.0,0.00019894,2]
[359731739,1746285044210,-450.0,0.00019894,2]
[359731740,1746285044219,-450.0,0.00019894,2]
[359731741,1746285044228,-450.0,0.00019894,2]
[359731742,1746285044237,-450.0,0.00019894,2]
[359731743,1746285044247,-450.0,0.00019894,2]
[359731744,1746285044256,-450.0,0.00019894,2]
[359731745,1746285044267,-450.0,0.00019894,2]
[359731746,1746285044278,-450.0,0.00019894,2]
[359731747,1746285044289,-858.0,0.00019894,2]
[359731748,1746285044298,-450.0,0.00019894,2]
[359731749,1746285044308,-450.0,0.00019894,2]
[359731750,1746285044318,-550.01,0.00019894,2]
[359731751,1746285044327,-450.0,0.00019894,2]
[359731752,1746285044336,-450.0,0.00019894,2]
[359731753,1746285044346,-674.72,0.00019894,2]
[359731754,1746285044420,-851.55,0.00019894,2]
[359731755,1746285044431,-450.0,0.00019894,2]
[359731756,1746285044441,-450.0,0.00019894,2]
[359731757,1746285044452,-450.0,0.00019894,2]
[359731758,1746285044463,-450.0,0.00019894,2]
[359731759,1746285044474,-300.0,0.00019894,2]
[359731760,1746285044483,-578.12,0.00019894,2]
[359731761,1746285044492,-473.26684363,0.00019894,2]
[359731762,1746285044502,-450.0,0.00019894,2]
[359731763,1746285044511,-450.0,0.00019894,2]
[359731764,1746285044522,-450.0,0.00019894,2]
[359731765,1746285044533,-450.0,0.00019894,2]
[359731766,1746285044542,-450.0,0.00019894,2]
[359731767,1746285044552,-450.0,0.00019894,2]
[359731768,1746285044563,-450.0,0.00019894,2]
[359731769,1746285044572,-2420.63,0.00019894,2]
[359731770,1746285044582,-450.0,0.00019894,2]
[359731771,1746285044591,-472.15560293,0.00019894,2]
[359731772,1746285044601,-450.0,0.00019894,2]
[359731773,1746285044610,-450.0,0.00019894,2]
[359731774,1746285044619,-534.07,0.00019894,2]
[359731775,1746285044629,-460.4631633,0.00019894,2]
[359731776,1746285044639,-450.0,0.00019894,2]
[359731777,1746285044648,-588.98,0.00019894,2]
[359731778,1746285044657,-1147.94,0.00019894,2]
[359731779,1746285044667,-450.0,0.00019894,2]
[359731780,1746285044676,-450.0,0.00019894,2]
[359731781,1746285044685,-1212.54,0.00019894,2]
[359731782,1746285044694,-450.0,0.00019894,2]
[359731783,1746285044703,-450.0,0.00019894,2]
[359731784,1746285044713,-450.0,0.00019894,2]
[359731785,1746285044722,-450.0,0.00019894,2]
[359731786,1746285044732,-524.3,0.00019894,2]
[359731787,1746285044742,-450.0,0.00019894,2]
[359731788,1746285044751,-450.0,0.00019894,2]
[359731789,1746285044761,-450.0,0.00019894,2]
[359731790,1746285044770,-470.48,0.00019894,2]
[359731791,1746285044780,-465.85790691,0.00019894,2]
[359731792,1746285044790,-450.0,0.00019894,2]
[359731793,1746285044799,-1083.21,0.00019894,2]
[359731794,1746285044809,-450.0,0.00019894,2]
[359731795,1746285044818,-450.0,0.00019894,2]
[359731796,1746285044828,-450.0,0.00019894,2]
[359731797,1746285044838,-450.0,0.00019894,2]
[359731798,1746285044847,-647.48,0.00019894,2]
[359731799,1746285044857,-450.0,0.00019894,2]
[359731800,1746285044866,-450.0,0.00019894,2]
[359731801,1746285044876,-463.78,0.00019894,2]
[359731802,1746285044886,-450.0,0.00019894,2]
[359731803,1746285044895,-1147.65,0.00019894,2]
[359731804,1746285044905,-450.0,0.00019894,2]
[359731805,1746285044917,-450.0,0.00019894,2]
[359731806,1746285044927,-581.94,0.00019894,2]
[359731807,1746285044936,-1036.76,0.00019894,2]
[359731808,1746285044947,-595.35,0.00019894,2]
[359731809,1746285044957,-450.0,0.00019894,2]
[359731810,1746285044966,-1272.93,0.00019894,2]
[359731811,1746285044975,-450.0,0.00019894,2]
[359731812,1746285044985,-565.27,0.00019894,2]
[359731813,1746285044995,-98699.86,0.00019894,2]
[359731814,1746285045005,-450.0,0.00019894,2]
[359731815,1746285045014,-521.17,0.00019894,2]
[359731816,1746285045024,-450.0,0.00019894,2]
[359731817,1746285045033,-633.19,0.00019894,2]
[359731818,1746285045043,-450.0,0.00019894,2]
[359731819,1746285045053,-518.85,0.00019894,2]
[359731820,1746285045062,-450.0,0.00019894,2]
[359731821,1746285045071,-450.0,0.00019894,2]
[359731822,1746285045081,-498.13,0.00019894,2]
[359731823,1746285045091,-4390.82,0.00019894,2]
[359731824,1746285045101,-450.0,0.00019895,2]
[359731825,1746285045110,-450.0,0.00019895,2]
[359731826,1746285045120,-450.0,0.00019895,2]
[359731827,1746285045130,-450.0,0.00019895,2]
[359731828,1746285045140,-450.0,0.00019895,2]
[359731829,1746285045150,-450.0,0.00019895,2]
[359731830,1746285045160,-583.88884764,0.00019895,2]
[359731831,1746285045170,-186.59209311,0.00019899,2]
[359731832,1746285045179,-346.4166,0.000199,2]
[359731833,1746285045188,-3464.72003088,0.000199,2]
[359731834,1746285045198,-186.5920931,0.000199,2]
[359731835,1746285045207,-816.53791861,0.000199,2]
[359731836,1746285045217,-12500.0,0.000199,2]
[359731837,1746285045226,-450.44078709,0.000199,2]
[359731838,1746285045236,-161.89746498,0.000199,2]
[359731839,1746285045246,-304.64584528,0.000199,2]
[359731840,1746285045255,-4008.0,0.0001996,2]
[359731841,1746285045264,-6756.0,0.0001996,2]
[359731842,1746285045274,-878.0,0.0001996,2]
[359731843,1746285045283,-153.0,0.0001996,2]
[359731844,1746285045292,-500.0,0.00019971,2]
[359731845,1746285045302,-500.0,0.00019973,2]
[359731846,1746285045312,-500.0,0.00019973,2]
[359731847,1746285045321,-504.35924829,0.00019973,2]
[359731848,1746285045331,-532.23391832,0.00019973,2]
[359731849,1746285045340,-160.45164529,0.00019973,2]
[359731850,1746285045349,-500.0,0.00019973,2]
[359731851,1746285045359,-500.0,0.00019973,2]
[359731852,1746285045368,-517.26161729,0.00019973,2]
[359731853,1746285045377,-504.7578118,0.00019973,2]
[359731854,1746285045386,-500.0,0.00019973,2]
[359731855,1746285045395,-500.0,0.00019973,2]
[359731856,1746285045403,-500.84285818,0.00019973,2]
[359731858,1746285045412,-500.0,0.00019973,2]
[359731859,1746285045422,-450.0,0.00019983,2]
[359731860,1746285045431,-520.31,0.00019983,2]
[359731861,1746285045441,-450.0,0.00019983,2]
[359731862,1746285045450,-450.0,0.00019983,2]
[359731863,1746285045459,-450.0,0.00019983,2]
[359731864,1746285045468,-777.24,0.00019983,2]
[359731865,1746285045478,-450.0,0.00019983,2]
[359731866,1746285045488,-438.32,0.00019983,2]
[359731867,1746285045497,-1821.57,0.00019983,2]
[359731868,1746285045506,-450.0,0.00019983,2]
[359731869,1746285045515,-450.0,0.00019983,2]
[359731870,1746285045527,-280.25488685,0.00019983,2]
[359731871,1746285045537,-3868.99,0.00019983,2]
[359731872,1746285045546,-450.0,0.00019983,2]
[359731873,1746285045555,-450.0,0.00019983,2]
[359731874,1746285045565,-500.96550993,0.00019998,2]
[359731875,1746285045574,-2443.62,0.00019999,2]
[359731876,1746285045583,-500.0,0.00019999,2]
[359731877,1746285045592,-500.0,0.00019999,2]
[359731878,1746285045602,-300.0,0.00019999,2]
[359731879,1746285045611,-300.0,0.00019999,2]
[359731880,1746285045620,-300.0,0.00019999,2]
[359731881,1746285045630,-450.0,0.00019999,2]
[359731882,1746285045639,-1111.51,0.00019999,2]
[359731883,1746285045648,-450.0,0.00019999,2]
[359731884,1746285045658,-537.0,0.00019999,2]
[359731885,1746285045667,-551.01,0.00019999,2]
[359731886,1746285045676,-559.15,0.00019999,2]
[359731887,1746285045686,-450.0,0.00019999,2]
[359731888,1746285045696,-450.0,0.00019999,2]
[359731889,1746285045705,-450.0,0.00019999,2]
[359731890,1746285045714,-450.0,0.00019999,2]
[359731891,1746285045724,-624.6,0.00019999,2]
[359731892,1746285045734,-450.0,0.00019999,2]
[359731893,1746285045743,-1646.71,0.00019999,2]
[359731894,1746285045752,-597.56,0.00019999,2]
[359731895,1746285045762,-630.55,0.00019999,2]
[359731896,1746285045771,-450.0,0.00019999,2]
[359731897,1746285045780,-450.0,0.00019999,2]
[359731898,1746285045789,-450.0,0.00019999,2]
[359731899,1746285045799,-678.21,0.00019999,2]
[359731900,1746285045808,-450.0,0.00019999,2]
[359731901,1746285045817,-672.98,0.00019999,2]
[359731902,1746285045827,-450.0,0.00019999,2]
[359731903,1746285045836,-450.0,0.00019999,2]
[359731904,1746285045845,-813.98,0.00019999,2]
[359731905,1746285045854,-804.51,0.00019999,2]
[359731906,1746285045863,-868.07,0.00019999,2]
[359731907,1746285045872,-450.0,0.00019999,2]
[359731908,1746285045881,-450.0,0.00019999,2]
[359731909,1746285045891,-1300.11,0.00019999,2]
[359731910,1746285045901,-470.42539181,0.00019999,2]
[359731911,1746285045910,-550.95,0.00019999,2]
[359731912,1746285045922,-790.31,0.00019999,2]
[359731913,1746285045931,-450.0,0.00019999,2]
[359731914,1746285045941,-523.64,0.00019999,2]
[359731916,1746285045950,-1094.74,0.00019999,2]
[359731918,1746285045960,-1478.28,0.00019999,2]
[359731919,1746285045970,-450.0,0.00019999,2]
[359731920,1746285045979,-627.18,0.00019999,2]
[359731922,1746285045990,-450.0,0.00019999,2]
[359731924,1746285046000,-450.0,0.00019999,2]
[359731925,1746285046009,-450.0,0.00019999,2]
[359731926,1746285046018,-450.0,0.00019999,2]
[359731927,1746285046028,-450.0,0.00019999,2]
[359731928,1746285046037,-450.0,0.00019999,2]
[359731929,1746285046046,-457.42,0.00019999,2]
[359731930,1746285046055,-450.0,0.00019999,2]
[359731931,1746285046064,-2344.17,0.00019999,2]
[359731932,1746285046083,-450.0,0.00019999,2]
[359731933,1746285046093,-1021.11,0.00019999,2]
[359731934,1746285046102,-607.05,0.00019999,2]
[359731935,1746285046113,-2162.94,0.00019999,2]
[359731936,1746285046122,-450.0,0.00019999,2]
[359731937,1746285046132,-453.22,0.00019999,2]
[359731938,1746285046141,-864.85,0.00019999,2]
[359731939,1746285046150,-747.18,0.00019999,2]
[359731940,1746285046160,-450.0,0.00019999,2]
[359731941,1746285046169,-450.0,0.00019999,2]
[359731942,1746285046178,-450.0,0.00019999,2]
[359731943,1746285046187,-450.0,0.00019999,2]
[359731944,1746285046196,-450.0,0.00019999,2]
[359731945,1746285046206,-684.35,0.00019999,2]
[359731946,1746285046215,-450.0,0.00019999,2]
[359731947,1746285046225,-618.73,0.00019999,2]
[359731948,1746285046234,-541.41,0.00019999,2]
[359731949,1746285046243,-345.52,0.00019999,2]
[359731950,1746285046252,-1057.0,0.0002,2]
[359731951,1746285046262,-223158.75417943,0.0002,2]
[359731952,1746285046603,-8996.89365897,0.0002,2]
[359731954,1746285046671,-1967.41000002,0.0002,2]
[359731956,1746285046683,-1620.877762,0.0002,2]
[359731958,1746285046695,-2290.16,0.0002,2]
[359731961,1746285046706,-476.03,0.0002,2]
[359731963,1746285046717,-444.0,0.0002,2]
[359731965,1746285046729,-1662.4,0.0002,2]
[359731969,1746285047206,-844.48458306,0.0001996,2]
[359731970,1746285047223,-295.51541694,0.0001996,2]
[359731971,1746285047233,-610.22458306,0.0002,2]
[359731972,1746285047244,-95435.1904679,0.0002,2]
[359731973,1746285047478,-450.0,0.0001962,2]
[359731974,1746285047488,-450.0,0.00019776,2]
[359731975,1746285047498,-450.0,0.00019894,2]
[359731976,1746285047508,-2747.7999998,0.0002,2]
[359731977,1746285047519,-432.26839026,0.0002,2]
[359731978,1746285047531,-721.51123384,0.0002,2]
[359731979,1746285047543,-2370.18000006,0.0002,2]
[359731980,1746285047560,-974.49434683,0.0002,2]
[359731981,1746285047572,-3442462.75288437,0.0002,2]
[359731982,1746285047619,-803.358,0.0002,2]
[359731983,1746285047630,-479.95712293,0.0002,2]
[359731984,1746285047647,-2307.37808417,0.0002,2]
[359731985,1746285047658,-366.09649969,0.0002,2]
[359731986,1746285047670,-5250.9291157,0.0002,2]
[359731987,1746285047682,-576.99,0.0002,2]
[359731988,1746285047871,-18841.88069307,0.0002,2]
[359731989,1746285047885,-769.4922,0.0002,2]
[359731990,1746285047977,-9692.61092311,0.0002,2]
[359731991,1746285052682,-1337249.95619455,0.0002,2]
[359731992,1746285052692,-522482.72857738,0.0002,2]
[359731993,1746285052704,-30000.0,0.0002,2]
[359731994,1746285052717,-1500.0,0.0002,2]
[359731995,1746285052730,-600.0,0.0002,2]
[359731996,1746285052742,-208.0,0.0002,2]
[359731997,1746285052753,-208.0,0.0002,2]
[359731998,1746285052765,-208.0,0.0002,2]
[359731999,1746285052777,-208.0,0.0002,2]
[359732000,1746285052789,-208.0,0.0002,2]
[359732001,1746285052801,-208.0,0.0002,2]
[359732002,1746285052813,-208.0,0.0002,2]
[359732003,1746285052826,-208.0,0.0002,2]
[359732004,1746285052839,-208.0,0.0002,2]
[359732005,1746285052851,-208.0,0.0002,2]
[359732006,1746285052862,-208.0,0.0002,2]
[359732007,1746285052873,-208.0,0.0002,2]
[359732008,1746285052883,-208.0,0.0002,2]
[359732009,1746285052895,-208.0,0.0002,2]
[359732010,1746285052908,-208.0,0.0002,2]
[359732011,1746285052921,-208.0,0.0002,2]
[359732012,1746285052933,-211.0,0.0002,2]
[359732013,1746285052945,-211.0,0.0002,2]
[359732014,1746285052957,-211.0,0.0002,2]
[359732015,1746285052971,-156.343,0.0002,2]
[359732016,1746285052984,-386.0,0.0002,2]
[359732017,1746285052999,-1091435.89448761,0.0002,2]
[359732018,1746285053022,-1443.469986,0.0002,2]
[359732019,1746285053035,-4908.2,0.0002,2]
[359732020,1746285053050,-347.99916423,0.0002,2]
[359732021,1746285053064,-5067.87057172,0.0002,2]
[359732022,1746285053205,-7050.54052419,0.0002,2]
[359732023,1746285053220,-4754.02886028,0.0002,2]
[359732024,1746285053233,-2153.64560495,0.0002,2]
[359732025,1746285053245,-1962.75592806,0.0002,2]
[359732026,1746285053260,-579.548,0.0002,2]
[359732027,1746285053275,-898.54302192,0.0002,2]
[359732028,1746285053289,-2268.19385748,0.0002,2]
[359732029,1746285053309,-23259.78354223,0.0002,2]
[359732030,1746285054010,4141.04,0.00019163,2]
[359732031,1746285054326,334.007793,0.0003287,60]
[359732032,1746285054537,200.0,0.00032876,60]
[359732033,1746285054758,1320.0,0.00032877,60]
[359732034,1746285061488,923.6,0.00032876,120]
[359732035,1746285061773,923.6,0.00032876,120]
[359732036,1746285064445,923.6,0.00032876,120]
[359732037,1746285064699,923.6,0.00032876,120]
[359732038,1746285064972,923.6,0.00032876,120]
[359732039,1746285065206,923.6,0.00032876,120]
[359732040,1746285065441,923.6,0.00032876,120]
[359732041,1746285065701,923.6,0.00032876,120]
[359732042,1746285065962,923.6,0.00032876,120]
[359732043,1746285066238,923.6,0.00032876,120]
[359732044,1746285066485,923.6,0.00032876,120]
[359732045,1746285066730,923.6,0.00032876,120]
[359732046,1746285067047,923.6,0.00032876,120]
[359732047,1746285067321,923.6,0.00032876,120]
[359732048,1746285070696,923.6,0.00032876,120]
[359732049,1746285070982,923.6,0.00032876,120]
[359732050,1746285071222,923.6,0.00032876,120]
[359732051,1746285071795,923.6,0.00032876,120]
[359732052,1746285071872,923.6,0.00032876,120]
[359732053,1746285072040,923.6,0.00032876,120]
[359732054,1746285072274,923.6,0.00032876,120]
[359732055,1746285072493,923.6,0.00032876,120]
[359732056,1746285072721,847.56,0.0003,30]
[359732057,1746285072775,923.6,0.00032876,120]
[359732058,1746285072992,923.74975069,0.00032876,120]
[359732059,1746285121475,-212.70704317,0.0001952,2]
[359732060,1746285125406,150.0,0.000195,2]
[359732061,1746285125466,-87.66515683,0.0001952,2]
[359732062,1746285140666,-211.83685741,0.0001952,2]
[359732063,1746285143302,-78.76785259,0.0001952,2]
[359732064,1746285168635,150.0,0.000195,2]
[359732065,1746285201094,527.375133,0.00026799,120]
[359732066,1746285218114,-163.022522,0.00019519,2]
[359732067,1746285223042,250.0,0.00017,2]
[359732068,1746285224127,300.0,0.00019,2]
[359732069,1746285242580,3145.33,0.00032877,60]
[359732070,1746285265528,150.0,0.00018983,2]
[359732072,1746285303816,265.33186298,0.00032877,60]
[359732073,1746285304769,329.42,0.000319,120]
[359732074,1746285321314,1829.3637929,0.00032,60]
[359732075,1746285351758,200.0,0.00032876,60]
[359732078,1746285414699,1320.82,0.00018956,2]
[359732079,1746285415398,1320.82,0.00026065,120]
[359732080,1746285417685,1320.82,0.00028434,120]
[359732083,1746285494586,500.0,0.00032876,120]
[359732084,1746285494826,500.0,0.00032876,120]
[359732085,1746285495068,500.0,0.00032876,120]
[359732086,1746285495463,500.0,0.00032876,120]
[359732087,1746285495704,500.0,0.00032876,120]
[359732088,1746285495933,500.0,0.00032876,120]
[359732089,1746285496183,500.0,0.00032876,120]
[359732090,1746285496427,500.0,0.00032876,120]
[359732091,1746285496522,643.18,0.0001702,2]
[359732092,1746285496672,500.0,0.00032876,120]
[359732093,1746285496747,643.18,0.00019284,2]
[359732094,1746285496919,500.0,0.00032876,120]
[359732095,1746285497162,500.0,0.00032876,120]
[359732096,1746285497402,500.0,0.00032876,120]
[359732097,1746285497983,500.0,0.00032876,120]
[359732098,1746285498251,500.0,0.00032876,120]
[359732099,1746285498504,320.88866505,0.00032876,120]
[359732100,1746285532614,200.0,0.00018894,2]
[359732101,1746285574260,1000.0,0.00018894,2]
[359732103,1746285611764,500.0,0.00018894,2]
[359732105,1746285652613,200.0,0.00032876,60]
[359732116,1746285744129,200.0,0.00018757,2]
[359732120,1746285803280,527.375133,0.00025291,120]
[359732121,1746285845324,250.0,0.00019315,2]
[359732138,1746285928187,429.98497156,0.00023,120]
[359732139,1746285932347,1117.53952744,0.0002,120]
[359732140,1746285951113,2616.683602,0.00019421,2]
[359732141,1746285951582,200.0,0.00032876,60]
[359732144,1746285981087,923.6,0.00032876,120]
[359732145,1746285981332,923.6,0.00032876,120]
[359732146,1746285981623,923.6,0.00032876,120]
[359732147,1746285981873,923.6,0.00032876,120]
[359732148,1746285982502,923.6,0.00032876,120]
[359732149,1746285982587,923.6,0.00032876,120]
[359732150,1746285982670,923.6,0.00032876,120]
[359732151,1746285982815,923.6,0.00032876,120]
[359732152,1746285983065,923.6,0.00032876,120]
[359732153,1746285983291,923.6,0.00032876,120]
[359732154,1746285983535,923.6,0.00032876,120]
[359732155,1746285983773,923.6,0.00032876,120]
[359732156,1746285984026,923.6,0.00032876,120]
[359732157,1746285984271,923.6,0.00032876,120]
[359732158,1746285984518,923.6,0.00032876,120]
[359732159,1746285984742,923.6,0.00032876,120]
[359732160,1746285984984,923.6,0.00032876,120]
[359732161,1746285985374,923.6,0.00032876,120]
[359732162,1746285985609,923.6,0.00032876,120]
[359732163,1746285985837,923.6,0.00032876,120]
[359732164,1746285986066,923.6,0.00032876,120]
[359732165,1746285986319,923.6,0.00032876,120]
[359732166,1746285986591,923.6,0.00032876,120]
[359732167,1746285986847,923.74975069,0.00032876,120]
[359732168,1746286011442,643.74152586,0.00032876,60]
[359732171,1746286030004,2867.0,0.0003287,60]
[359732172,1746286031200,619.30168171,0.0003,120]
[359732173,1746286031606,2197.13021314,0.0002301,120]
[359732174,1746286038650,550.55165871,0.0003287,120]
[359732175,1746286043763,2000.63,0.0003287,60]
[359732183,1746286066917,162.60690965,0.00028,120]
[359732184,1746286068500,1059.59735152,0.0003,120]
[359732185,1746286073832,2020.0,0.0002,120]
[359732187,1746286091787,267.42411942,0.00028,120]
[359732190,1746286112640,259.87062764,0.00028799,120]
[359732226,1746286115169,1634.36548105,0.0003,120]
[359732235,1746286115931,512.06314439,0.00032876,60]
[359732237,1746286125110,649.85908132,0.0002,120]
[359732251,1746286126847,2038.7044358,0.00032877,60]
[359732253,1746286126917,521.53755888,0.0003287,120]
[359732255,1746286126989,2543.42141431,0.00032,60]
[359732257,1746286127042,1019.07657424,0.00032,120]
[359732268,1746286131862,2757.36,0.0001873,2]
[359732367,1746286151319,23900.0,0.00018705,2]
[359732390,1746286232348,-291.29844986,0.00019518,2]
[359732391,1746286232358,-200.0,0.00019518,2]
[359732392,1746286232367,-250.0,0.00019518,2]
[359732393,1746286232377,-479.567,0.00019519,2]
[359732394,1746286232386,-166.7551116,0.00019519,2]
[359732395,1746286232395,-161.89746498,0.00019519,2]
[359732396,1746286232405,-557.7561795,0.00019519,2]
[359732397,1746286232414,-170.11498696,0.00019519,2]
[359732398,1746286232423,-346.4166,0.0001952,2]
[359732399,1746286232433,-291.29844983,0.0001956,2]
[359732400,1746286232443,-170.11498695,0.00019561,2]
[359732401,1746286232453,-189.03348178,0.00019597,2]
[359732402,1746286232464,-18.36651822,0.00019597,2]
[359732403,1746286232474,-291.29844983,0.00019603,2]
[359732404,1746286232483,-170.11498695,0.00019604,2]
[359732405,1746286232492,-1200.0,0.00019605,2]
[359732406,1746286232502,-300.0,0.00019606,2]
[359732407,1746286232511,-151.0,0.00019607,2]
[359732408,1746286232520,-668.65185757,0.00019607,2]
[359732409,1746286232530,-4411.56818743,0.00019608,2]
[359732410,1746286232541,-1285.90345045,0.00019608,2]
[359732411,1746286232552,-562.76417773,0.00019608,2]
[359732412,1746286232577,-15816.05128439,0.00019608,2]
[359732413,1746286232587,-999.99,0.00019609,2]
[359732414,1746286232596,-499.99,0.00019609,2]
[359732415,1746286232605,-694.02,0.00019609,2]
[359732416,1746286232615,-9999.99,0.00019609,2]
[359732417,1746286232624,-150.99,0.00019609,2]
[359732418,1746286232634,-150.99,0.00019609,2]
[359732419,1746286232644,-7958.08,0.00019609,2]
[359732420,1746286232653,-1674.05515249,0.00019618,2]
[359732421,1746286232662,-450.0,0.00019618,2]
[359732422,1746286232672,-450.0,0.00019618,2]
[359732423,1746286232681,-450.0,0.00019618,2]
[359732424,1746286232691,-638.67,0.00019618,2]
[359732426,1746286232700,-450.0,0.00019618,2]
[359732428,1746286232709,-450.0,0.00019618,2]
[359732430,1746286232718,-450.0,0.00019618,2]
[359732432,1746286232727,-450.0,0.00019618,2]
[359732434,1746286232736,-261.7,0.00019618,2]
[359732436,1746286232745,-450.0,0.00019618,2]
[359732438,1746286232754,-450.0,0.00019618,2]
[359732439,1746286232763,-450.0,0.00019618,2]
[359732441,1746286232772,-450.0,0.00019618,2]
[359732443,1746286232782,-450.0,0.00019618,2]
[359732445,1746286232791,-534.1,0.00019618,2]
[359732447,1746286232800,-450.0,0.00019618,2]
[359732449,1746286232809,-450.0,0.00019618,2]
[359732451,1746286232818,-960.46,0.00019618,2]
[359732452,1746286232827,-450.0,0.00019618,2]
[359732454,1746286232836,-698.38,0.00019618,2]
[359732456,1746286232846,-450.0,0.00019618,2]
[359732458,1746286232855,-450.0,0.00019618,2]
[359732460,1746286232864,-450.9,0.00019618,2]
[359732462,1746286232873,-522.05,0.00019618,2]
[359732464,1746286232882,-450.0,0.00019618,2]
[359732466,1746286232891,-450.0,0.00019618,2]
[359732468,1746286232901,-450.0,0.00019618,2]
[359732470,1746286232910,-450.0,0.00019618,2]
[359732472,1746286232919,-450.0,0.00019618,2]
[359732474,1746286232928,-450.0,0.00019618,2]
[359732476,1746286232938,-480.32,0.00019618,2]
[359732478,1746286232947,-450.0,0.00019618,2]
[359732480,1746286232957,-450.0,0.00019618,2]
[359732482,1746286232966,-251.28,0.00019618,2]
[359732484,1746286232975,-450.0,0.00019618,2]
[359732486,1746286232984,-450.0,0.00019618,2]
[359732488,1746286232993,-450.0,0.00019618,2]
[359732490,1746286233002,-450.0,0.00019618,2]
[359732491,1746286233012,-450.0,0.00019618,2]
[359732492,1746286233020,-606.8,0.00019618,2]
[359732493,1746286233030,-450.0,0.00019618,2]
[359732494,1746286233040,-450.0,0.00019618,2]
[359732495,1746286233049,-450.0,0.00019618,2]
[359732496,1746286233057,-4207.86,0.00019618,2]
[359732497,1746286233067,-643.73,0.00019618,2]
[359732498,1746286233076,-676.55,0.00019618,2]
[359732499,1746286233086,-599.36,0.00019618,2]
[359732500,1746286233094,-595.35,0.00019618,2]
[359732501,1746286233104,-450.0,0.00019618,2]
[359732502,1746286233113,-450.0,0.00019618,2]
[359732503,1746286233122,-450.0,0.00019618,2]
[359732504,1746286233132,-3707.78,0.00019618,2]
[359732505,1746286233141,-450.0,0.00019618,2]
[359732506,1746286233150,-450.0,0.00019618,2]
[359732507,1746286233160,-450.0,0.00019618,2]